Cogmind - Beta 17.1 @@@ ROGUE MODE // 2026.09.14 @ 18:17:38 Player: Ethranok Result: Smashed by cave-in Performance ------------- Evolutions (1) 500 Regions Visited (3) 600 Robots Destroyed (46) 230 Value Destroyed (1283) 1283 Prototype IDs (1) 20 Alien Tech Used (0) 0 Bonus (0) 0 TOTAL SCORE: 2633 Bonus ------- None Cogmind --------- Core Integrity 0/400 Matter 276/300 Energy 256/280 System Corruption 15% Temperature Cool (0) Movement Treading (160) Location -9/Materials Parts ------- > --- POWER (1) -------- Cooled Ion Engine > --- PROPULSION (2) --- Light Treads Light Treads > --- UTILITY (4) ------ Medium Storage Unit Signal Interpreter Hardened Light Armor Plating Hardlight Generator > --- WEAPON (2) ------- Heavy Assault Rifle Great Maul > --- INVENTORY (10) --- Light Angular Momentum Engine High-capacity Matter Pod (200) Hardened Light Armor Plating Hardlight Generator High-powered Shotgun Light Cannon Light Cannon Rocket Launcher Rocket Launcher Mini Grenade Launcher Peak State ------------ > --- POWER ------------ Cooled Ion Engine > --- PROPULSION ------- Light Treads Light Treads > --- UTILITY ---------- Medium Storage Unit Signal Interpreter Improved Light Armor Plating Hardlight Generator > --- WEAPON ----------- High-powered Shotgun Great Maul > --- INVENTORY -------- Light Angular Momentum Engine Light Treads High-capacity Matter Pod Hardened Light Armor Plating Hardened Light Armor Plating Hardlight Generator Heavy Assault Rifle Light Cannon Light Cannon Improved Grenade Launcher [Rating: 21] Favorites ----------- Power Light Ion Engine Engine Light Ion Engine Power Core Light Nuclear Core Propulsion Aluminum Leg Treads Light Treads Leg Aluminum Leg Utility Medium Storage Unit Device Hardlight Generator Storage Medium Storage Unit Processor Signal Interpreter Hackware System Shield Protection Improved Light Armor Plating Weapon Light Cannon Energy Gun Small Laser Ballistic Gun Assault Rifle Ballistic Cannon Light Cannon Launcher Improved Grenade Launcher Special Weapon Mining Laser Impact Weapon Great Maul Build | -11 -10 -10 -9 ------- Run | Yrd Mat Min Mat Slots Evolved 2 | . . . 2 Power . | . . . . Propulsion . | . . . . Utility 2 | . . . 2 Weapon . | . . . . Parts Attached 36 | 6 10 4 16 Power 5 | 1 2 . 2 Engine 4 | 1 2 . 1 Core 1 | . . . 1 Reactor . | . . . . Propulsion 11 | 2 3 2 4 Treads 4 | . . . 4 Leg 7 | 2 3 2 . Wheel . | . . . . Hover . | . . . . Flight . | . . . . Utility 9 | 1 2 . 6 Device 1 | . . . 1 Storage 2 | 1 1 . . Processor 3 | . 1 . 2 Hackware 1 | . . . 1 Protection 2 | . . . 2 Artifact . | . . . . Weapon 11 | 2 3 2 4 Energy Gun 2 | 1 1 . . Energy Cannon . | . . . . Ballistic Gun 4 | 1 . 1 2 Ballistic Cannon 2 | . 1 . 1 Launcher 1 | . . . 1 Special Weapon 1 | . 1 . . Impact Weapon 1 | . . 1 . Slashing Weapon . | . . . . Piercing Weapon . | . . . . Special Melee Weapon . | . . . . Unidentified Prototypes 1 | . . . 1 Parts Lost 8 | . 3 . 5 Power 2 | . 1 . 1 Propulsion 3 | . 2 . 1 Utility 2 | . . . 2 Weapon 1 | . . . 1 Highest Loss Streak 2 | . 1 . 2 To Critical Strikes . | . . . . Average Backups 7 | . 3 9 9 Power . | . . 1 1 Propulsion . | . . 1 . Utility 3 | . . 4 3 Weapon 3 | . 1 2 4 Tool/Special . | . . . . Unused Backups 9 | . . . 9 Power 1 | . . . 1 Propulsion 1 | . . . 1 Utility 4 | . . . 4 Weapon 3 | . . . 3 Tool/Special . | . . . . Average Slot Usage (%) 97 | . 93 100 98 Engine 11 | . 13 14 10 Treads 10 | . . . 21 Leg 14 | . 26 28 . Device 2 | . . . 5 Storage 12 | . 14 14 11 Processor 13 | . 9 14 15 Protection 5 | . . . 10 Energy Gun 3 | . 10 . . Ballistic Gun 11 | . 13 13 9 Ballistic Cannon 8 | . 1 14 9 Peak Build Rating 21 | 6 8 11 21 Average Rating 12 | 3 6 10 17 On Entrance 6 | . 6 7 11 Avg Prop Armor Cover (%) 9 | 20 . . 8 Naked Turns . | . . . . Heaviest Build 35 | 11 18 20 35 Greatest Support 40 | 20 20 20 40 Greatest Overweight (x) 2 | 2 1 . 1 Average Overweight (x) . | . . . . Largest Inventory Capacity 10 | 8 10 10 10 Average Capacity 9 | 7 9 10 10 Most Carried 10 | 5 7 10 10 Average Carried 7 | 1 3 9 9 Final Capacity 10 | 8 10 10 10 Final Carried 10 | 1 5 10 10 Class Distribution -------------------- 100% | Mutant Dominant Class ---------------- Mutant | -10/Materials Mutant | -10/Mines Mutant | -9/Materials Resources | -11 -10 -10 -9 ----------- Run | Yrd Mat Min Mat Matter Collected 1475 | 208 481 161 625 Remotely . | . . . . Salvage Created 1366 | . 516 123 727 Parts 91 | . 28 6 57 Haulers Intercepted 1 | . . . 1 Recyclers Shooed . | . . . . Parts Field Recycled . | . . . . Retrieved Matter . | . . . . Parts Self-Destructed . | . . . . Prevented . | . . . . Parts Restored . | . . . . Kills | -11 -10 -10 -9 ------- Run | Yrd Mat Min Mat Combat Hostiles Destroyed 32 | . 9 4 19 Guns 20 | . 9 3 8 Cannons 7 | . . 1 6 AOE 4 | . . . 4 Classes Destroyed 10 | . 5 . 5 Worker 1 | . 1 . . Builder 1 | . . . 1 Hauler 1 | . . . 1 Recycler 1 | . 1 . . Operator 4 | . 2 . 2 Watcher 6 | . 2 . 4 Swarmer 4 | . . . 4 Grunt 21 | . 9 4 8 Brawler 1 | . . . 1 Sentry 6 | . . . 6 Best Kill Streak 8 | . 4 2 8 Combat Bots Only 8 | . 4 2 8 Max Kills in Single Turn 4 | . 1 1 4 Gunslinging . | . . . . Exploded 4 | . . . 4 Melee . | . . . . Uniques/NPCs Destroyed . | . . . . Combat | -11 -10 -10 -9 -------- Run | Yrd Mat Min Mat Hostile Shots Fired 175 | . 80 17 78 Missed 53 | . 20 7 26 Hits 122 | . 60 10 52 Projectile 122 | . 60 10 52 Critical Strikes 1 | . . . 1 Part Disruptions 1 | . . . 1 Damage Taken 2344 | . 710 107 1527 Core 561 | . 143 10 408 Absorbed by Shields 52 | . . . 52 Regen/Repaired (Parts) 292 | . 66 . 226 Core Remaining (%) 69 | 100 . 38 . Volleys Fired 120 | . 63 9 48 Largest 2 | . 2 2 2 Hottest 100 | . 100 55 66 Shots Fired 223 | . 117 18 88 Gun 155 | . 106 9 40 Cannon 57 | . 2 9 46 Launcher 2 | . . . 2 Special 9 | . 9 . . Kinetic 160 | . 56 18 86 Thermal 61 | . 61 . . Explosive 2 | . . . 2 Electromagnetic . | . . . . Robot Hit Streak 12 | . 10 6 12 Robot Miss Streak 4 | . 4 2 4 Penetration Max . | . . . . Secondary Targets 2 | . 2 . . Max Gunslinging Chain 1 | . 1 . . Shots Hit Robots 137 | . 70 12 55 Core Hits 74 | . 31 5 38 Critical Kills . | . . . . Critical Parts Destroyed 1 | . . . 1 Critical Strikes 3 | . 1 . 2 Burn 1 | . 1 . . Blast 1 | . . . 1 Smash 1 | . . . 1 Melee Attacks 32 | . . 5 27 Impact 32 | . . 5 27 Slashing . | . . . . Piercing . | . . . . Sneak Attacks . | . . . . Combat Hostiles . | . . . . Follow-up Attacks . | . . . . Damage Inflicted 2534 | . 959 278 1297 Guns 1573 | . 910 196 467 Cannons 605 | . 38 82 485 Explosions 256 | . . . 256 Melee 79 | . . . 79 Ramming 21 | . 11 . 10 Kinetic 1741 | . 511 278 952 Thermal 437 | . 437 . . Explosive 250 | . . . 250 Electromagnetic 6 | . . . 6 Impact 79 | . . . 79 Slashing . | . . . . Piercing . | . . . . Highest Corruption 15 | . . . 15 Average Corruption 9 | . . . 9 Corruption Purged . | . . . . Corruption Blocked . | . . . . Effects 42 | . . . 42 Message Errors 11 | . . . 11 Matter Fused 10 | . . . 10 Heat Flow Errors 8 | . . . 8 Energy Discharges 5 | . . . 5 Data Loss (major) 3 | . . . 3 Misfires 2 | . . . 2 Alerts 1 | . . . 1 Misdirections 1 | . . . 1 Weapon Failures 1 | . . . 1 Overload Shots . | . . . . Overflow Damage 40 | . . . 40 Projectiles . | . . . . Explosions . | . . . . Melee 40 | . . . 40 Knockbacks 7 | . 1 3 3 Impact . | . . . . Kinetic 7 | . 1 3 3 Secondary . | . . . . Self-Inflicted Damage 97 | . . . 97 Shots 2 | . . . 2 Rammed 4 | . . . 4 Targets Rammed 9 | . 5 . 4 Kicked 5 | . 5 . . Crushed . | . . . . Highest Temperature 269 | . 225 20 269 Average Temperature 69 | . 62 7 91 Received Heat Transfer 699 | . 390 60 249 Effects 1 | . . . 1 Interference 1 | . . . 1 Siege Activations . | . . . . Martial Activations . | . . . . Shielding Activations . | . . . . Robots Disrupted . | . . . . Combat Hostiles . | . . . . Robots Corrupted 1 | . . . 1 Combat Hostiles 1 | . . . 1 Parts Fried . | . . . . Impact Corruptions 2 | . . . 2 Robots Melted . | . . . . Combat Hostiles . | . . . . Parts Melted 3 | . 3 . . Heat Transferred 1056 | . 1056 . . Parts Sabotaged . | . . . . Parts Stolen . | . . . . Parts Stripped . | . . . . Power Chain Reactions . | . . . . Alert | -11 -10 -10 -9 ------- Run | Yrd Mat Min Mat Maximum Alert Level . | . . . . Low Security (%) 100 | 100 100 100 100 Level 1 . | . . . . Level 2 . | . . . . Level 3 . | . . . . Level 4 . | . . . . Level 5 . | . . . . High Security . | . . . . Max Security . | . . . . Peak Influence 173 | . 95 60 173 Initial . | . . . . Average 42 | . 18 7 73 Influence Increases 996 | . 295 82 619 Destroy 0b10 Robot/C 640 | . 180 80 380 Destroy 0b10 Robot/NC 70 | . 30 . 40 Destroy Leader 164 | . 44 . 120 Successful Hack 56 | . 39 . 17 Disable Machine 15 | . . . 15 Destroy Structure 36 | . 2 2 32 Lose Combat Pursuer 15 | . . . 15 Influence Decreases 928 | . 295 82 551 Time Decay 858 | . 275 82 501 Lost Part 70 | . 20 . 50 Squads Dispatched 7 | . 1 1 5 Investigation 5 | . . 1 4 Extermination . | . . . . Reinforcement 2 | . 1 . 1 Assault . | . . . . Garrison . | . . . . Intercept . | . . . . Searches Triggered . | . . . . Construction Impeded . | . . . . Haulers Reinforced . | . . . . Active Scanning Responses . | . . . . Cargo Convoy Interrupts . | . . . . Stealth | -11 -10 -10 -9 --------- Run | Yrd Mat Min Mat Distress Signals 2 | . 1 . 1 Communications Jammed . | . . . . Distress Signals . | . . . . Times Spotted 66 | . 24 6 36 Peak Tracking Total 7 | . 5 2 7 Tactical Retreats 1 | . . . 1 Traps | -11 -10 -10 -9 ------- Run | Yrd Mat Min Mat Traps Triggered . | . . . . Indirectly . | . . . . Trap Hack Attempts . | . . . . Triggered . | . . . . Disarmed . | . . . . Reprogrammed . | . . . . Reused . | . . . . Traps Extracted . | . . . . Installed . | . . . . Triggered . | . . . . Machines | -11 -10 -10 -9 ---------- Run | Yrd Mat Min Mat Machines Disabled 1 | . . . 1 Max in Single Turn 1 | . . . 1 Machines Repaired . | . . . . Machines Dismantled . | . . . . Machines Sabotaged . | . . . . Overloaded Fab Kills . | . . . . Hacking | -11 -10 -10 -9 --------- Run | Yrd Mat Min Mat Machines Accessed 21 | . 10 1 10 Terminals 13 | . 7 . 6 Fabricators . | . . . . Repair Stations 3 | . 1 . 2 Recycling Units 3 | . 2 . 1 Scanalyzers 1 | . . . 1 Garrison Access . | . . . . Total Hacks 74 | . 37 1 36 Successful 41 | . 20 1 20 Failed 32 | . 16 . 16 Catastrophic 4 | . 2 . 2 Database Lockouts 1 | . 1 . . Manual 56 | . 33 . 23 Terminals 56 | . 32 . 24 Fabricators . | . . . . Repair Stations 10 | . 3 . 7 Recycling Units 5 | . 2 . 3 Scanalyzers 2 | . . . 2 Garrison Access . | . . . . Terminal Hacks 11 | . 7 1 3 Record 2 | . 1 . 1 Robot Analysis 4 | . 4 . . Open Door 1 | . . 1 . Terminal Index 2 | . 1 . 1 Recycling Unit Index 1 | . 1 . . Registered Components 1 | . . . 1 Fabricator Hacks . | . . . . Repair Station Hacks 7 | . 2 . 5 Scan Component 4 | . 1 . 3 Repair 3 | . 1 . 2 Recycling Unit Hacks 4 | . 2 . 2 Report Inventory 3 | . 2 . 1 Retrieve Components 1 | . . . 1 Scanalyzer 2 | . . . 2 Insert Component 1 | . . . 1 Analyze 1 | . . . 1 Garrison Access Hacks . | . . . . Unauthorized Hacks 16 | . 9 . 7 Terminals 16 | . 9 . 7 Botnet 13 | . 7 . 6 Operators 3 | . 2 . 1 Fabricators . | . . . . Repair Stations . | . . . . Recycling Units . | . . . . Scanalyzers . | . . . . Garrison Access . | . . . . Data Cores Recovered 1 | . 1 . . Used 1 | . 1 . . Hacking Detections 17 | . 8 . 9 Full Trace Events 12 | . 6 . 6 Feedback Events 1 | . . . 1 Corruption 1 | . . . 1 Feedback Blocked . | . . . . Robot Schematics Acquired . | . . . . Robots Built . | . . . . Authchips . | . . . . Time . | . . . . Total Robot Build Rating . | . . . . Part Schematics Acquired 1 | . . . 1 Parts Built . | . . . . Authchips . | . . . . Time . | . . . . Total Part Build Rating . | . . . . Part Studies Acquired . | . . . . Parts Repaired 3 | . 1 . 2 Time 90 | . 26 . 64 Parts Recycled . | . . . . Recycled Matter . | . . . . Retrieved Matter . | . . . . Retrieved Components 9 | . . . 9 Parts Scanalyzed 1 | . . . 1 Part Schematics Acquired 1 | . . . 1 Parts Damaged . | . . . . Bothacking | -11 -10 -10 -9 ------------ Run | Yrd Mat Min Mat Used RIF Installer . | . . . . Robots Hacked . | . . . . Non-combat . | . . . . Combat . | . . . . Robot Hacks Applied . | . . . . Relay Couplers Released . | . . . . Fabnet Peak Effective % . | . . . . Robots Rewired . | . . . . Allies Hacked . | . . . . Hacks Repelled . | . . . . Allies | -11 -10 -10 -9 -------- Run | Yrd Mat Min Mat Total Allies . | . . . . Largest Group . | . . . . Highest-Rated Group . | . . . . Highest-Rated Ally . | . . . . Total Orders . | . . . . Ally Attacks . | . . . . Total Damage . | . . . . Kills . | . . . . Allies Corrupted . | . . . . Allies Melted . | . . . . Intel | -11 -10 -10 -9 ------- Run | Yrd Mat Min Mat Active Infowar (turns) . | . . . . Robot Analysis Total 2 | . 2 . . Derelict Logs Recovered 1 | . . 1 . Drone Launches . | . . . . Drone Recoveries . | . . . . Exploration | -11 -10 -10 -9 ------------- Run | Yrd Mat Min Mat Turns Passed 3218 | 57 981 615 1565 Spaces Moved 1747 | 48 553 437 709 Core 24 | 24 . . . Treads 680 | . . . 680 Legs 1043 | 24 553 437 29 Wheels . | . . . . Hover . | . . . . Flight . | . . . . Fastest Speed 50 | 50 120 120 120 Average Speed 138 | 93 123 120 164 Slowest Speed 240 | 150 190 120 240 Overloaded Moves . | . . . . Propulsion Burnouts . | . . . . Robots Hopped . | . . . . Potential Cave-ins 22 | . 7 2 13 Cave-ins Triggered 3 | . . . 3 Exploration Rate (%) 62 | 3 82 92 72 Regions Visited 3 Branch Regions 1 Pre-discovered Areas 1 | . . 1 . Known Exits Taken 2 | . 1 1 . Unknown Exits Taken 1 | 1 . . . Scrap Searched 1 | . . 1 . Spaces Dug 36 | . 9 4 23 Terrain Destroyed 54 | . 9 4 41 Melee 27 | . . 4 23 Projectile 9 | . 9 . . AOE 18 | . . . 18 Terrain Rammed . | . . . . Walls Destroyed . | . . . . Machines Disabled . | . . . . Actions | -11 -10 -10 -9 --------- Run | Yrd Mat Min Mat Total 2240 | 60 713 502 965 Wait 215 | . 63 30 122 Move 1742 | 47 552 436 707 Hop . | . . . . Pick Up 51 | 7 13 11 20 Fast Attach . | . . . . Attach 18 | 6 5 . 7 Detach . | . . . . Swap 31 | . 8 5 18 Drop 20 | . 4 6 10 Fire 120 | . 63 9 48 Melee 32 | . . 5 27 Ram . | . . . . Kick 5 | . 5 . . Crush 4 | . . . 4 Escape Stasis 2 | . . . 2 Rewire . | . . . . Trap . | . . . . Miscellaneous . | . . . . Route ------- -11/Scrapyard -10/Materials (discovered 6 exits: *Mat x3 / *Min x2 / *Sub) -10/Mines (discovered 3 exits: *Mat x2 / *Sub) -9/Materials (discovered 3 exits: *Mat x2 / *Min) History --------- Turn | Location | Event 5 | -11/Scrapyard | Discovered new exit (range 15) 58 | -11/Scrapyard | Entered Materials 88 | -10/Materials | Discovered new exit (range 8) 286 | -10/Materials | Discovered new exit (range 6) 306 | -10/Materials | Build established: Mutant 349 | -10/Materials | Identified exit to Subcaves 405 | -10/Materials | Discovered new exit (range 4) 409 | -10/Materials | Identified exit to Materials 470 | -10/Materials | Repaired Assault Rifle 614 | -10/Materials | Discovered exit to Materials (range 9) 750 | -10/Materials | Discovered exit to Materials (range 12) 773 | -10/Materials | Core integrity fell below 50% 909 | -10/Materials | Central database locked down 1023 | -10/Materials | Discovered new exit (range 9) 1031 | -10/Materials | Identified exit to Mines 1039 | -10/Materials | Entered Mines 1048 | -10/Mines | Met a Derelict shopkeep closing up shop 1136 | -10/Mines | Excavation squad dispatched 1136 | -10/Mines | A large section of the Mines collapsed 1273 | -10/Mines | Found a hidden stash of uninstalled traps 1294 | -10/Mines | Learned location of Storage (-7) 1341 | -10/Mines | Discovered exit to Subcaves (range 4) 1400 | -10/Mines | Joined a pair of Derelicts in attacking an 0b10 outpost 1594 | -10/Mines | Discovered exit to Materials (range 8) 1631 | -10/Mines | Discovered exit to Materials (range 9) 1654 | -10/Mines | Entered Materials 1654 | -9/Materials | Evolved 2 slots: Utility x2 1858 | -9/Materials | Destroyed 8 combat bots 2013 | -9/Materials | Discovered new exit (range 8) 2043 | -9/Materials | Identified exit to Mines 2295 | -9/Materials | Crushed by falling debris 2296 | -9/Materials | System corruption reached 10% 2377 | -9/Materials | Crushed by falling debris 2378 | -9/Materials | Core integrity fell below 50% 2423 | -9/Materials | Discovered new exit (range 10) 2437 | -9/Materials | Identified exit to Materials 2652 | -9/Materials | Discovered exit to Materials (range 13) 3109 | -9/Materials | Repaired Great Maul 3136 | -9/Materials | Repaired Lgt. Cannon 3220 | -9/Materials | Crushed by falling debris 3220 | -9/Materials | Smashed by cave-in Last Messages --------------- Rating: 1 Time: 26 >>Repair Repairing Lgt. Cannon... ETC: 26 03114_ CNGR3IU1,TX:GV0XII9 J F MYDGLBGT:8L 03134_ System corrupted: Matter fused (-9). 03136_ Repair station completes Lgt. Cannon repairs. 03136_ Acquired Lgt. Cannon. 03150_ System corrupted: Energy discharge (-70). 03151_ Acquired 8 matter. 03156_ Connecting with Scanalyzer... 03156_ Slammed into W-16 Scout. 03164_ U-05 Engineer destroyed. 03166_ System corrupted: Energy discharge (-56). 03167_ K-01 Serf collects debris. 03195_ U-05 Engineer builds a Wall. 03206_ 4I8#TLF:KFLH#8%T,RXZBMTJWJVV 4: 03220_ The unstable cave ceiling collapses. 03220_ Crushed by falling debris. Map ----- +----------------------------------------------------+ | #?# """ """ +|= ## """ #??# ##= # | | #?# # ## R" #??# ######## | | #?# #% ## """ #??# #??????? | | """ #?####+###### ## #??# #??????? | | R" ######*##### ###+####??# #??????? | | """ %=* % % %/ #??# #??????? | | % % %[ =!=! #??# #??????? | | % % %=%!*[![ = #??# #??????? | | #################+##### * !#### #??# ####???? | | #???# * # =#####+###### #??# #???? | | ##### [ ! # ## ## #??# #???? | | "## # " ##"S% """ ## #### #???? | | ""## /# """ ##""" """ ## #???? | | ||#######+#### "" ## "" """ ## ####???? | | ""# + """ ## ## #??????? | | ||# ########## "" ## """ ##########+####????? | | ""#!#????????# """ ## """ #????# #????? | | "#!#????????# """ ## """ #????# #????? | | ####%#??#?????# """ ## = #????# #????? | | !!!#? #????# " ###########????# #????? | | = !!# #????#! ????# #????????# """ #????? | | !]/ #????######????# #????????# """"" #????? | | !] # ##??????????????# #????????# """"" #????? | | !] ####???????????????# #????????# """"" #????? | | #??????????????????# #????????# """ #????? | | #??????????????????#@#????????###?????##????? | | #?????????????????# #??????????????????????? | | #?????????????????####??????????????????????? | | #### #???????????????????????????????????????????? | | ???? #???????????????????????????????????????????? | | ???? #???????????????????????????????????????????? | | ???? #???????????????????????????????????????????? | | ???? ???????????????????????????????????????????? | | ???? ???????????????????????????????????????????? | | ???? ???????????????????????????????????????????? | | ?????????????????????????????????????????????????? | | ?????????????????????????????????????????????????? | | ?????????????????????????????????????????????????? | | ?????????????????????????????????????????????????? | | ?????????????????????????????????????????????????? | | ?????????????????????????????????????????????????? | | ?????????????????????????????????????????????????? | | ?????????????????????????????????????????????????? | | ?????????????????????????????????????????????????? | | ?????????????????????????????????????????????????? | | ?????????????????????????????????????????????????? | | ?????????????????????????????????????????????????? | | ??????=??????????????????????????????????????????? | | ?????????????????????????????????????????????????? | | ?????????????????????????????????????????????????? | +----------------------------------------------------+ Best States ------------- Heat Dissipation 28 Energy Generation 14 Energy Capacity 280 Matter Stores 300 Matter Capacity 300 Sight Range 16 Terrain Scan Density 10 Armor Coverage 150 Evasion (%) 55 Targeting Accuracy 8 Recoil Reduction 2 Defensive Hacking 10 Item Schematics ----------------- Hardlight Generator | -9/Materials | Scanalyzed Robot Schematics ------------------ None Fabricated ------------ Nothing Repaired ---------- Assault Rifle | 34% | -10/Materials Great Maul | 9% | -9/Materials Lgt. Cannon | 10% | -9/Materials Studied --------- None Alien Tech Used ----------------- None Achievements -------------- None Challenges ------------ None Game ------ Seed NeutronThrusterMicrothruster Manual? 0 Play Time 00:46:21 Cumulative 22.5 hours Start 2026.09.14 @ 13:02:22 End 2026.09.14 @ 18:17:38 Sessions 5 Manual Loads 0 Difficulty Rogue Special Mode None Game No. 33 Rogue 33 Adventurer 0 Explorer 0 Win Type - Total 0 Types 0/0/0/0/0/0/0/0/0/0 Lore% 9 Gallery% 13 Achievement% 15 Wizard Run 0 Options --------- Layout 0 ASCII 0 Keyboard 0 Movement Arrows Keybinds 0 Fullscreen 1 Font 24/Smallcaps Map View 56x25 Zoom Use 76% Tactical HUD 1 Map Filters NONE Filters NONE Steam 1 RUN: 13e53b2d-1bc3-40f4-acb0-34533017afff